bitfinex/quotes_ETHUSD_20260109
["timestamp","ask_amount","ask_price","bid_price","bid_amount"]
[1767964505406,3.23536141,3092.8,3092.0,0.91389745]
[1767964506212,6.46872282,3092.8,3092.0,0.91389745]
[1767964506576,7.3172399,3092.8,3092.0,0.8931518]
[1767964507376,4.08387849,3092.8,3092.0,0.8931518]
[1767964508693,0.99970449,3092.7,3091.9,3.23423863]
[1767964509688,0.99970449,3092.6,3091.8,3.90673878]
[1767964511721,0.99970449,3092.6,3091.8,7.14110064]
[1767964511921,0.99970449,3092.6,3091.9,1.30489992]
[1767964512132,0.99970449,3092.6,3091.9,6.95779844]
[1767964513289,0.99890449,3092.6,3091.9,6.95779844]
[1767964513586,0.99890449,3092.6,3091.9,10.19199342]
[1767964513786,3.23342576,3092.7,3091.9,10.19199342]
[1767964513989,3.23342576,3092.7,3092.1,0.91289745]
[1767964514624,3.23342576,3092.7,3092.0,1.40987322]
[1767964516743,0.002,3092.8,3092.0,4.6440043]
[1767964517132,0.002,3092.8,3092.0,5.55690175]
[1767964517445,0.002,3092.8,3092.1,0.91289745]
[1767964517747,0.002,3092.5,3092.2,0.87910544]
[1767964518144,0.002,3092.8,3092.2,0.87910544]
[1767964518536,1.00170449,3092.8,3092.2,0.87910544]
[1767964518847,4.23312512,3092.7,3092.0,1.40987322]
[1767964519067,4.23312512,3092.7,3091.9,4.14712486]
[1767964519413,0.002,3092.8,3092.0,4.14704377]
[1767964519741,0.002,3092.8,3092.1,0.91289745]
[1767964520828,0.002,3092.8,3092.2,0.91289745]
[1767964523273,0.0012,3092.8,3092.3,0.91289745]
[1767964523483,0.0012,3092.8,3092.4,0.41467529]
[1767964524682,0.0012,3092.8,3091.9,4.40110155]
[1767964524683,1.00090449,3092.8,3091.9,4.40110155]
[1767964524845,1.00090449,3092.8,3092.0,3.23414837]
[1767964525046,1.00090449,3092.8,3091.9,1.16689745]
[1767964525047,1.00090449,3092.8,3092.1,3.23403614]
[1767964525461,0.0012,3092.8,3092.1,4.14693359]
[1767964525648,0.0012,3092.8,3092.2,0.73810282]
[1767964525867,0.0012,3092.8,3092.3,0.91289745]
[1767964529689,1.00090449,3092.8,3092.5,0.001]
[1767964531679,4.23425269,3092.8,3092.5,0.001]
[1767964532796,3.2345482,3092.8,3092.5,0.001]
[1767964533097,0.74018722,3092.8,3092.5,0.001]
[1767964533396,0.0012,3092.8,3092.5,0.001]
[1767964533997,0.0012,3092.8,3092.3,0.97453503]
[1767964533998,0.0012,3092.8,3092.3,0.95132503]
[1767964537387,0.0004,3092.8,3092.3,0.93784598]
[1767964538713,0.0004,3092.8,3092.3,4.1716701]
[1767964538922,0.0004,3092.8,3092.4,0.97453503]
[1767964539234,0.0004,3092.8,3092.0,3.23410086]
[1767964539235,0.92259405,3092.8,3092.0,3.23410086]
[1767964539395,0.92259405,3092.8,3092.0,4.07103564]
[1767964539723,4.15597195,3092.8,3092.0,5.04557067]
[1767964540735,0.92259405,3092.8,3092.0,5.04557067]
[1767964541105,0.92259405,3092.8,3092.1,0.97453503]
[1767964541302,4.15592062,3092.8,3092.1,0.97453503]
[1767964541831,0.002,3092.5,3092.1,0.97453503]
[1767964542030,0.002,3092.5,3092.2,0.50455707]
[1767964543835,0.002,3092.5,3091.9,4.20875636]
[1767964545043,0.002,3092.5,3092.0,0.97453503]
[1767964546932,0.0004,3092.8,3092.3,0.97453503]
[1767964548729,0.0004,3092.8,3092.4,0.95345669]
[1767964549241,0.0004,3092.8,3092.5,0.95345669]
[1767964549440,0.0004,3092.8,3092.3,0.95345669]
[1767964549651,0.0004,3092.8,3092.3,1.39759226]
[1767964550156,0.0004,3092.8,3092.3,0.95345669]
[1767964551757,0.0004,3092.8,3092.3,4.18728736]
[1767964552259,0.0004,3092.8,3092.3,4.1872939]
[1767964553453,0.0004,3092.8,3092.3,0.95345669]
[1767964553826,0.002,3092.5,3092.3,0.95345669]
[1767964554159,0.0004,3092.8,3092.3,1.39759181]
[1767964554829,0.0004,3092.8,3092.3,4.63142476]
[1767964556228,0.0004,3092.8,3092.4,0.95345669]
[1767964559667,0.0004,3092.8,3092.4,4.18718751]
[1767964559874,0.0004,3092.8,3092.4,0.95345669]
[1767964560075,0.0004,3092.8,3092.4,1.73998714]
[1767964560669,0.0004,3092.8,3092.4,0.95345669]
[1767964561084,0.0004,3092.8,3092.4,4.18714154]
[1767964561733,7.35650338,3093.7,3092.8,0.95345669]
[1767964561874,3.23255164,3093.6,3092.8,0.95345669]
[1767964562210,4.15109971,3093.5,3092.8,0.95345669]
[1767964562677,0.91650338,3093.3,3092.3,0.44413512]
[1767964562872,0.91650338,3093.3,3092.4,3.48769378]
[1767964563073,0.94912292,3093.1,3092.4,0.254]
[1767964563400,3.23282648,3093.3,3092.6,0.94293843]
[1767964563604,3.23271238,3093.4,3092.8,0.94293843]
[1767964563903,0.002,3093.5,3092.8,0.94293843]
[1767964564106,0.002,3093.5,3092.9,0.94293843]
[1767964565313,0.002,3093.5,3093.0,4.17604544]
[1767964565826,0.002,3093.2,3093.1,0.94293843]
[1767964566145,0.002,3093.8,3093.2,0.94293843]
[1767964568132,0.002,3093.8,3093.3,0.94293843]
[1767964569700,0.002,3093.8,3093.4,0.94293843]
[1767964570636,0.002,3094.0,3093.4,0.94293843]
[1767964571521,0.002,3094.0,3093.5,0.94293843]
[1767964571713,0.002,3094.0,3093.6,0.442957]
[1767964572118,0.002,3094.0,3093.5,0.94293843]
[1767964572998,0.95112292,3094.0,3093.1,4.59350744]
[1767964573201,0.95112292,3094.0,3093.1,0.41760454]
[1767964573500,0.94912292,3093.7,3093.1,0.41760454]
[1767964573699,0.94912292,3093.7,3092.8,1.19693843]
[1767964573934,0.94912292,3093.7,3093.0,4.17598288]
[1767964574521,0.94912292,3093.7,3093.1,3.23299537]
[1767964575036,0.002,3094.0,3093.1,3.23299537]
[1767964575335,0.95112292,3094.0,3093.1,7.40893628]
[1767964575635,0.94912292,3093.9,3093.2,4.53837613]
[1767964575831,0.94912292,3093.9,3093.3,0.254]
[1767964578200,0.94912292,3093.9,3093.3,3.48677332]
[1767964578526,0.002,3093.7,3093.3,3.48677332]
[1767964579949,0.002,3093.7,3093.4,0.94293843]
[1767964580251,0.002,3093.7,3093.5,0.44297118]
[1767964580433,0.002,3094.0,3093.5,0.44297118]
[1767964581072,0.002,3094.0,3093.5,1.38590961]
[1767964582024,0.002,3094.0,3093.5,0.94293843]
[1767964582858,0.95112292,3094.0,3093.3,1.19693843]
[1767964583259,0.002,3094.0,3093.3,4.42970749]
[1767964583561,0.002,3094.0,3093.5,0.94293843]
[1767964584258,0.002,3094.0,3093.6,0.94293843]
[1767964584461,0.0028,3094.1,3093.7,0.94293843]
[1767964585251,0.002,3094.3,3093.7,0.94293843]
[1767964586855,0.002,3094.3,3093.7,4.17531259]
[1767964587760,0.002,3094.3,3093.7,0.94293843]
[1767964589168,0.002,3094.3,3093.5,0.44295736]
[1767964589169,0.95112292,3094.3,3093.5,4.87241678]
[1767964589367,0.95112292,3094.3,3093.6,0.8105099]
[1767964589669,0.95112292,3094.3,3093.6,4.04296528]
[1767964590132,0.002,3094.3,3093.7,4.17527078]
[1767964590758,0.002,3094.3,3093.8,0.94293843]
[1767964590965,0.002,3094.0,3093.8,0.94293843]
[1767964591260,0.002,3094.3,3093.9,1.36046551]
[1767964591459,0.94912292,3094.4,3093.9,0.41752708]
[1767964591759,0.000804,3094.5,3093.9,0.41752708]
[1767964591760,0.000804,3094.5,3093.9,1.36046551]
[1767964592754,0.000804,3094.5,3093.9,4.59257938]
[1767964592934,0.000804,3094.5,3094.0,0.45925794]
[1767964593439,0.000804,3094.5,3094.0,1.41083302]
[1767964594669,0.000804,3094.5,3094.0,0.45925794]
[1767964594872,0.000804,3094.5,3094.0,0.71325794]
[1767964596467,0.93479876,3094.5,3094.0,0.71325794]
[1767964596768,0.000804,3094.5,3094.0,0.71325794]
[1767964596974,0.000804,3094.5,3094.0,3.48606108]
[1767964597173,0.93399476,3094.4,3094.0,3.48606108]
[1767964597340,0.93399476,3094.4,3094.0,0.254]
[1767964598640,0.000804,3094.5,3094.0,3.48605061]
[1767964598979,0.35294978,3094.7,3094.1,0.0008048]
[1767964599175,0.35294978,3094.7,3094.2,0.34868554]
[1767964599375,0.35294978,3094.7,3093.8,0.254]
[1767964599579,0.35294978,3094.4,3093.5,3.23252799]
[1767964599744,0.35294978,3094.4,3093.6,0.254]
[1767964600358,0.35294978,3094.4,3093.5,3.23252799]
[1767964600571,0.35294978,3094.4,3093.6,0.5772528]
[1767964600770,0.35294978,3094.4,3093.6,1.52882788]
[1767964601080,3.58469847,3094.3,3093.6,0.5772528]
[1767964601888,3.58469847,3094.3,3093.6,3.80972267]
[1767964602100,0.35294978,3094.3,3093.6,3.80972267]
[1767964602262,0.35294978,3094.3,3093.7,0.47612978]
[1767964603999,0.35294978,3094.3,3093.9,0.001]
[1767964604162,3.23164789,3094.4,3093.9,0.95257508]
[1767964604362,0.35294978,3094.3,3093.9,0.001]
[1767964605499,0.35294978,3094.2,3093.9,0.001]
[1767964607461,0.35294978,3094.1,3093.9,0.001]
[1767964609385,6.46391644,3094.5,3093.9,0.001]
[1767964609588,0.67179164,3094.4,3093.9,0.001]
[1767964611799,6.46349738,3094.3,3093.9,0.001]
[1767964612699,6.46349738,3094.3,3093.7,0.94685334]
[1767964613487,10.64711282,3094.3,3093.2,0.001]
[1767964613670,10.64711282,3094.3,3093.3,1.22802321]
[1767964613876,6.46391518,3094.1,3093.4,0.97402321]
[1767964614603,7.45864626,3094.1,3093.4,0.97402321]
[1767964614800,7.45864626,3094.1,3093.2,0.001]
[1767964614801,7.45864626,3094.1,3093.2,0.97852807]
[1767964616226,0.99473108,3094.0,3093.2,0.97852807]
[1767964616428,0.99473108,3094.0,3092.8,3.23409311]
[1767964616429,0.99473108,3094.0,3092.8,0.25480032]
[1767964616585,0.99473108,3093.8,3092.8,1.23232839]
[1767964618132,6.46475094,3093.7,3092.8,1.23232839]
[1767964618488,6.46475094,3093.7,3092.9,0.97752807]
[1767964618787,6.46475094,3093.7,3092.2,0.00080048]
[1767964618788,0.99473108,3093.5,3092.3,0.97752807]
[1767964619003,0.99473108,3093.5,3092.4,0.97752807]
[1767964620003,7.46010898,3093.4,3092.4,0.97752807]
[1767964620335,0.99473108,3093.3,3092.4,0.97752807]
[1767964622405,3.23289796,3093.2,3092.6,0.97752807]
[1767964622601,3.23253995,3093.6,3092.7,0.0323342]
[1767964622846,0.254,3094.0,3092.9,0.99814447]
[1767964623025,6.7181241,3094.0,3092.9,0.99814447]
[1767964623347,1.08618572,3093.9,3092.9,0.99814447]
[1767964624335,0.00080032,3094.1,3093.5,0.99814447]
[1767964625721,0.0028048,3094.5,3093.9,0.99814447]
[1767964627030,0.0028048,3094.5,3094.0,0.99814447]
[1767964628202,0.0028048,3094.5,3093.6,1.25214447]
[1767964628403,0.91375728,3094.5,3093.7,0.99814447]
[1767964628632,0.91375728,3094.5,3092.8,0.00080064]
[1767964628633,1.64861529,3094.4,3093.5,0.99814447]
[1767964628834,0.00120759,3093.7,3093.5,0.99814447]
[1767964629042,1.64861529,3094.4,3093.5,0.99693688]
[1767964629263,0.91095248,3094.3,3092.8,0.00080064]
[1767964629546,0.91095248,3094.3,3092.9,0.99814447]
[1767964629836,0.91095248,3094.1,3093.6,0.001]
[1767964630133,1.16495248,3094.0,3092.9,0.99814447]
[1767964630646,6.46454198,3093.8,3092.9,0.99814447]
[1767964635867,7.37549446,3093.8,3092.9,0.99814447]
[1767964638719,0.91095248,3093.7,3092.9,0.99814447]
[1767964638920,0.91095248,3093.7,3092.8,0.25480064]
[1767964639120,6.4649599,3093.6,3092.8,2.26651245]
[1767964639352,6.4649599,3093.6,3092.9,0.99814447]
[1767964642065,3.23247995,3093.6,3092.9,0.99814447]
[1767964642383,6.4649599,3093.6,3092.9,0.99814447]
[1767964642588,3.23247995,3093.6,3093.2,0.001]
[1767964642879,3.23242449,3093.7,3093.2,0.99543367]
[1767964643655,3.23216652,3093.9,3093.2,0.99543367]
[1767964644671,0.002,3094.2,3093.6,0.99814447]
[1767964644857,0.002,3094.2,3093.9,0.99814447]
[1767964645964,0.002,3094.2,3093.7,1.66288428]
[1767964646366,0.002,3094.2,3093.7,4.89525834]
[1767964646562,0.002,3094.2,3093.7,3.89711387]
[1767964646747,0.002,3094.2,3093.8,0.99814447]
[1767964646940,0.002,3094.2,3093.4,1.25214447]
[1767964647275,0.65822061,3094.2,3093.4,1.25214447]
[1767964647472,0.65822061,3094.2,3093.1,3.23299049]
[1767964647473,0.002,3094.2,3093.5,0.99814447]
[1767964647862,0.91295248,3094.2,3093.3,0.99814447]
[1767964648042,3.23195759,3094.1,3093.3,0.99814447]
[1767964648243,6.46391518,3094.1,3093.3,0.99814447]
[1767964648439,0.73768677,3094.0,3093.3,0.99814447]
[1767964649446,3.23195759,3094.1,3093.3,0.99814447]
[1767964649972,0.002,3094.2,3093.3,0.99814447]
[1767964651078,0.002,3094.2,3093.6,0.99814447]
[1767964654653,0.002,3093.9,3093.6,0.99814447]
[1767964662164,0.002,3093.9,3093.7,0.94333779]
[1767964662494,0.002,3094.2,3093.8,0.94333779]
[1767964662701,0.002,3094.2,3093.8,0.97566049]
[1767964665396,0.0028048,3094.5,3094.1,0.94333779]
[1767964666996,0.0028048,3094.5,3093.8,0.94333779]
[1767964667388,0.002,3094.2,3093.8,0.94333779]
[1767964667579,0.002,3094.2,3093.9,1.36090843]
[1767964668495,0.002,3094.2,3093.9,0.94333779]
[1767964671197,0.0028048,3094.5,3093.9,0.94333779]
[1767964671198,0.0028048,3094.5,3094.1,0.95268358]
[1767964672115,0.0028048,3094.5,3094.0,5.64925367]
[1767964672413,0.0028048,3094.5,3094.1,0.95268358]
[1767964672973,0.0028048,3094.5,3093.9,0.95268358]
[1767964675408,0.0028048,3094.5,3094.0,0.44388997]
[1767964675775,0.0028048,3094.5,3094.0,1.39657355]
[1767964675980,0.0028048,3094.5,3094.0,1.42889417]
[1767964676212,0.0028048,3094.5,3094.0,1.39657355]
[1767964679123,0.0028048,3094.5,3094.0,0.95268358]
[1767964679623,0.0028048,3094.5,3094.2,0.001]
[1767964682124,0.91738618,3094.5,3094.2,0.001]
[1767964682327,0.91738618,3094.5,3093.7,0.95268358]
[1767964682526,0.91458138,3094.4,3093.7,0.254]
[1767964682707,0.91458138,3094.3,3093.7,0.254]
[1767964684528,3.23185314,3094.2,3093.7,0.254]
[1767964686222,0.94509242,3094.1,3093.4,0.254]
[1767964686423,0.94509242,3094.1,3093.2,0.001]
[1767964686613,0.94509242,3093.9,3093.2,0.001]
[1767964686812,0.94509242,3093.8,3093.2,0.001]
[1767964687011,0.94509242,3093.5,3092.8,0.00080064]
[1767964688342,0.94509242,3093.2,3092.8,0.00080064]
[1767964688532,4.1780949,3093.1,3092.4,0.99721001]
[1767964688727,5.48412721,3093.1,3092.4,0.99721001]
[1767964689339,8.71712969,3093.1,3092.4,0.99721001]
[1767964689821,0.94509242,3093.0,3092.2,0.25480048]
[1767964690139,0.94509242,3092.9,3091.7,0.001]
[1767964690442,0.94509242,3092.6,3091.8,0.254]
[1767964690615,4.17851305,3092.7,3091.9,0.99721001]
[1767964690939,7.41193368,3092.7,3091.9,0.99721001]
[1767964691111,4.17851305,3092.7,3091.9,0.99721001]
[1767964691311,7.41193368,3092.7,3091.9,0.99721001]
[1767964691527,0.80713683,3092.6,3091.9,0.99721001]
[1767964691736,1.60713683,3092.6,3091.9,0.99721001]
[1767964692116,0.8,3092.6,3092.0,1.02955153]
[1767964692313,0.8,3092.6,3092.0,0.99721001]
[1767964693112,0.8,3092.6,3092.1,0.99721001]
[1767964694812,0.72692096,3092.6,3092.3,0.99721001]
[1767964695114,3.23312899,3093.0,3092.3,0.99721001]
[1767964695303,3.9997234,3093.0,3092.3,0.99721001]
[1767964697215,7.23290727,3093.0,3092.3,0.99721001]
[1767964697538,8.17799969,3093.0,3092.1,0.99721001]
[1767964697739,0.94509242,3092.9,3091.9,3.23424418]
[1767964697919,0.94509242,3092.9,3091.9,4.23145419]
[1767964698118,0.94509242,3092.9,3092.0,1.42035543]
[1767964698322,0.94509242,3092.9,3092.0,4.65450643]
[1767964698830,0.94509242,3092.9,3092.0,1.42035543]
[1767964699228,3.23331608,3092.8,3092.0,1.42035543]
[1767964699441,4.1784085,3092.8,3092.0,1.42035543]
[1767964700642,7.41172458,3092.8,3092.0,1.42035543]
[1767964700844,8.22955648,3092.8,3092.0,0.99721001]
[1767964701241,4.9962404,3092.8,3092.0,0.99721001]
[1767964702443,1.76292432,3092.8,3092.0,4.2313354]
[1767964702650,3.23326213,3092.9,3092.1,0.99721001]
[1767964703612,3.23326213,3092.9,3092.3,0.001]
[1767964704749,4.17835455,3092.9,3092.3,0.001]
[1767964705250,7.41161857,3092.9,3092.3,0.001]
[1767964705452,0.94509242,3092.8,3092.3,0.001]
[1767964705629,1.68625428,3092.7,3092.3,0.001]
[1767964707355,4.91976621,3092.7,3092.3,0.001]
[1767964710063,0.9458929,3093.2,3092.3,0.99821001]
[1767964710228,0.00080048,3093.2,3092.5,0.99721001]
[1767964711761,0.00080048,3093.2,3092.6,0.99721001]
[1767964712461,0.9458929,3093.2,3092.4,1.25121001]
[1767964712763,0.9458929,3093.2,3092.5,0.44859735]
[1767964713060,0.00080048,3093.2,3092.5,0.90976454]
[1767964714750,0.00080048,3093.2,3092.6,0.90976454]
[1767964716377,0.002,3092.9,3092.6,0.90976454]
[1767964716573,0.002,3092.9,3092.4,0.254]
[1767964716778,0.002,3092.9,3092.3,0.001]
[1767964717297,0.9111115,3092.9,3092.3,0.001]
[1767964718464,4.14438342,3092.9,3092.3,0.001]
[1767964718666,0.41443834,3092.8,3092.3,0.001]
[1767964721393,3.64778284,3092.8,3092.3,0.001]
[1767964722688,0.41443834,3092.8,3092.3,0.001]
[1767964722901,3.23525337,3092.9,3092.3,0.001]
[1767964723276,0.002,3092.9,3092.3,0.94310292]
[1767964723486,0.002,3092.9,3092.4,0.90976454]
[1767964724888,0.002,3092.9,3092.3,0.001]
[1767964725082,0.73972402,3092.9,3092.3,0.001]
[1767964725605,8.11532764,3092.9,3092.3,0.001]
[1767964725905,0.73972402,3092.9,3092.3,0.91076454]
[1767964726090,0.002,3092.9,3092.3,0.91076454]
[1767964726506,0.002,3092.9,3092.4,0.94210188]
[1767964726710,0.002,3092.9,3092.4,0.90976454]
[1767964727209,3.23523367,3092.9,3092.4,0.90976454]
[1767964727505,0.002,3092.9,3092.4,0.90976454]
[1767964729083,0.00280048,3093.2,3092.7,0.91510757]
[1767964730205,0.002,3093.9,3092.9,0.91510757]
[1767964730381,3.23227099,3093.8,3092.9,0.91510757]
[1767964731804,0.002,3093.9,3093.1,0.91510757]
[1767964732489,0.002,3093.9,3093.2,0.91510757]
[1767964732673,0.00080064,3094.1,3093.7,0.91510757]
[1767964735069,0.002,3094.2,3093.9,0.91510757]
[1767964735477,0.0028048,3094.5,3094.1,0.91510757]
[1767964741614,0.002,3094.2,3094.1,0.91510757]
[1767964741789,0.0028048,3094.5,3094.1,1.35522281]
[1767964742501,0.0028048,3094.5,3094.1,0.91510757]
[1767964742699,0.0028048,3094.5,3093.9,0.93828336]
[1767964743009,0.0028048,3094.5,3093.7,3.23231177]
[1767964743010,0.99248413,3094.5,3093.7,0.93828336]
[1767964743213,0.99248413,3094.5,3093.6,0.254]
[1767964743428,0.98967933,3094.1,3093.0,0.93928336]
[1767964743599,0.98967933,3093.9,3093.0,4.17236981]
[1767964743928,0.98967933,3093.9,3093.1,0.93828336]
[1767964744720,0.98967933,3093.9,3093.0,0.001]
[1767964745187,0.98967933,3093.9,3093.0,3.23410614]
[1767964745387,3.23227099,3093.8,3093.0,4.1723895]
[1767964745608,0.98967933,3093.7,3093.0,0.001]
[1767964746402,3.23218525,3093.9,3093.0,0.001]
[1767964746403,4.22187752,3093.9,3093.0,0.93928336]
[1767964746705,4.22187752,3093.9,3093.1,0.97061338]
[1767964747195,3.48611234,3094.0,3093.1,0.97061338]
[1767964747395,3.48611234,3094.0,3093.2,0.93828336]
[1767964747590,3.48611234,3094.0,3093.4,0.93828336]
[1767964747817,3.23211234,3094.0,3093.4,0.93828336]
[1767964748026,3.85885021,3094.0,3093.4,0.93828336]
[1767964750488,0.98967933,3094.2,3093.4,0.93828336]
[1767964750695,4.4753603,3094.4,3093.6,0.93828336]
[1767964751618,7.70704127,3094.4,3093.6,0.93828336]
[1767964753736,4.4753603,3094.4,3093.6,0.93828336]
[1767964754237,7.70704127,3094.4,3093.6,0.93828336]
[1767964754535,8.47802588,3094.4,3093.6,0.93828336]
[1767964755843,0.98967933,3094.3,3093.6,0.93828336]
[1767964757407,0.98967933,3094.3,3093.4,1.19228336]
[1767964757838,3.23185314,3094.2,3093.4,1.19228336]
[1767964758351,0.98967933,3094.1,3093.4,1.19228336]
[1767964758538,0.98967933,3094.1,3093.4,1.63488583]
[1767964758736,0.98967933,3094.1,3093.4,4.86755478]
[1767964758944,4.22146254,3094.3,3093.5,0.93828336]
[1767964759941,7.45324575,3094.3,3093.5,0.93828336]
[1767964760509,3.23178321,3094.3,3093.5,0.93828336]
[1767964760855,3.23178321,3094.3,3093.6,0.93828336]
[1767964765657,3.23178321,3094.3,3093.8,0.001]
[1767964768833,0.98967933,3094.2,3093.8,0.001]
[1767964769034,3.23178321,3094.3,3093.8,0.001]
[1767964769367,4.47536396,3094.4,3093.8,0.001]
[1767964769586,3.48568463,3094.4,3093.8,0.93928336]
[1767964770066,3.23439614,3094.5,3093.8,0.93928336]
[1767964770631,4.22407547,3094.5,3093.8,0.93928336]
[1767964771360,7.45566681,3094.5,3093.8,0.93928336]
[1767964771566,8.22663349,3094.5,3093.8,0.93928336]
[1767964772468,4.99504215,3094.5,3093.8,0.93928336]
[1767964772758,0.93797857,3094.4,3093.8,0.001]
[1767964773068,4.16972726,3094.3,3093.8,0.001]
[1767964773662,3.23170097,3094.4,3093.8,0.001]
[1767964774467,4.94333455,3094.5,3093.8,0.0333227]
[1767964775058,4.94333455,3094.5,3093.8,1.00804869]
[1767964775557,3.2343893,3094.5,3093.8,1.00804869]
[1767964775935,0.0028048,3094.5,3093.9,0.97472599]
[1767964777342,0.002,3094.2,3093.9,0.97472599]
[1767964777642,0.0028048,3094.5,3094.2,0.97472599]
[1767964780277,0.0028048,3094.5,3093.9,0.97472599]
[1767964781484,0.0028048,3094.5,3093.9,1.42092562]
[1767964781776,3.23434462,3094.5,3093.9,1.42092562]
[1767964782070,0.0028048,3094.5,3093.9,1.42092562]
[1767964784843,0.94078337,3094.5,3093.9,0.44619963]
[1767964785778,0.0028048,3094.5,3093.8,0.97572599]
[1767964786276,0.0028048,3094.5,3093.9,0.97472599]
[1767964789768,0.0028048,3094.5,3094.1,0.001]
[1767964790159,0.002,3094.2,3094.1,0.001]
[1767964796588,0.002,3094.2,3094.1,0.96093508]
[1767964797674,0.002,3094.2,3094.1,0.001]
[1767964798066,0.93028193,3094.2,3094.1,0.001]
[1767964802979,3.65004584,3094.2,3093.4,0.97158927]
[1767964803301,6.88190208,3094.2,3093.4,0.97158927]
[1767964803601,0.98966266,3094.1,3093.4,0.97158927]
[1767964803799,0.98966266,3094.0,3093.3,0.255]
[1767964805067,3.23216652,3093.9,3093.3,0.255]
[1767964805399,0.98966266,3093.7,3093.0,1.22658927]
[1767964805585,0.98966266,3093.7,3093.0,0.97258927]
[1767964807172,3.23247995,3093.6,3093.0,0.97258927]
[1767964807869,7.45462256,3093.6,3093.0,0.001]
[1767964808305,4.22214261,3093.6,3093.0,0.001]
[1767964808600,0.74545283,3093.5,3093.0,0.001]
[1767964809380,3.97808568,3093.5,3093.0,0.001]
[1767964811471,5.646578,3093.2,3092.8,0.00080096]
[1767964811783,0.98966266,3093.3,3092.8,0.00080096]
[1767964813427,3.23289796,3093.2,3092.8,0.00080096]
[1767964816220,3.23284418,3093.3,3092.8,0.00080096]
[1767964816592,3.23284418,3093.3,3093.1,0.001]
[1767964816792,4.00375494,3093.3,3093.1,0.001]
[1767964818319,0.002,3093.7,3093.1,0.97258927]
[1767964818320,3.48840593,3093.7,3093.1,0.97258927]
[1767964818701,0.002,3093.7,3093.1,0.97258927]
[1767964820210,0.002,3093.7,3093.3,0.97158927]
[1767964822023,0.002,3093.7,3093.1,0.97258927]
[1767964823024,0.002,3093.7,3093.2,0.97158927]
[1767964823332,0.002,3093.7,3093.3,0.42055429]
[1767964824228,0.002,3093.7,3093.2,0.97158927]
[1767964826030,0.002,3093.7,3093.2,4.20447148]
[1767964826331,0.002,3093.7,3093.3,0.97158927]
[1767964826703,0.002,3094.0,3093.6,0.97158927]
[1767964828432,0.002,3094.0,3093.1,3.23397701]
[1767964828638,0.002,3094.0,3093.3,0.97158927]
[1767964829721,0.002,3093.7,3093.3,0.97158927]
[1767964830237,0.99166266,3094.0,3093.3,0.97158927]
[1767964830408,0.99166266,3094.0,3093.2,0.3233977]
[1767964831216,0.99166266,3094.0,3093.2,4.52786453]
[1767964831417,0.99166266,3094.0,3093.3,3.68565578]
[1767964831622,0.002,3094.0,3093.4,0.97158927]
[1767964835658,0.002,3094.0,3093.3,0.45288645]
[1767964835659,0.99341206,3094.0,3093.3,0.45288645]
[1767964835956,0.99341206,3094.0,3093.2,0.96679079]
[1767964836535,0.99341206,3094.0,3093.3,0.96679079]
[1767964837261,0.002,3094.0,3093.3,0.96679079]
[1767964838827,0.002,3094.0,3093.4,3.23268895]
[1767964839166,0.002,3094.0,3093.6,0.96679079]
[1767964841530,0.0028048,3094.5,3094.0,0.96679079]
[1767964841730,0.002,3094.8,3094.2,0.96679079]
[1767964842158,0.0028,3095.3,3094.9,0.96679079]
[1767964844141,0.0028,3095.3,3094.7,0.96679079]
[1767964844342,0.94621206,3095.5,3094.7,0.96679079]
[1767964844637,0.99141206,3095.4,3094.5,0.254]
[1767964844881,0.99141206,3095.2,3094.4,0.00080336]
[1767964845245,7.4532388,3095.1,3094.4,0.00080336]
[1767964845581,0.99141206,3095.0,3094.4,0.00080336]
[1767964847468,3.23112216,3094.9,3094.4,0.00080336]
[1767964848543,0.99141206,3095.0,3094.4,0.00080336]
[1767964848744,0.97272416,3095.1,3094.4,0.00080336]
[1767964849783,3.23101777,3095.0,3094.4,0.00080336]
[1767964850480,3.23101777,3095.0,3094.4,1.35687566]
[1767964850685,4.20368195,3095.1,3094.4,1.35687566]
[1767964850915,3.23095779,3095.1,3094.5,0.93891605]
[1767964851747,6.4616324,3095.2,3094.5,0.93891605]
[1767964853946,0.002,3094.7,3094.4,0.41795961]
[1767964854178,0.002,3094.7,3094.4,0.00080336]
[1767964855759,0.002,3094.7,3094.4,0.93971941]
[1767964857792,0.002,3094.7,3094.4,0.00080336]
[1767964858987,0.002,3095.0,3094.4,0.93971941]
[1767964859188,0.002,3095.0,3094.5,0.97123144]
[1767964859495,3.23060024,3095.4,3094.9,0.93891605]
[1767964861088,0.002,3095.8,3095.5,0.93891605]
[1767964861275,0.97393129,3095.5,3095.3,0.254]
[1767964861479,0.97272416,3095.5,3095.3,0.254]
[1767964862353,0.002,3095.8,3095.3,0.254]
[1767964862589,0.4039602,3095.8,3095.3,0.254]
[1767964865293,0.4019602,3095.7,3095.3,0.254]
[1767964865673,0.4019602,3095.5,3095.2,0.254]
[1767964866001,0.002,3095.8,3095.0,0.254]
[1767964866206,3.6341859,3095.8,3095.0,0.254]
[1767964866374,3.2322257,3095.8,3095.1,0.95549621]
[1767964866774,0.002,3095.8,3095.1,0.95549621]
[1767964866978,0.0008,3096.2,3095.7,0.95549621]
[1767964867201,3.23063601,3096.2,3095.7,0.95549621]
[1767964867681,0.0008,3096.2,3095.7,0.95549621]
[1767964868206,0.0008,3096.2,3095.8,0.95549621]
[1767964869274,0.0008,3096.2,3095.6,1.20949621]
[1767964869476,0.0008,3096.2,3095.7,0.95549621]
[1767964876042,0.47683924,3096.2,3095.3,0.95549621]
[1767964876188,0.0008,3096.2,3095.3,0.95549621]
[1767964878087,0.0008,3096.2,3095.4,0.95549621]
[1767964878286,0.0008,3096.2,3095.6,0.95549621]
[1767964879426,0.0008,3096.2,3095.6,0.95649621]
[1767964879794,3.70704268,3097.0,3095.9,0.95549621]
[1767964879994,0.002,3096.2,3095.9,0.95549621]
[1767964880198,6.4582795,3096.8,3096.0,1.93809342]
[1767964880432,3.22913975,3096.8,3096.0,0.95549621]
[1767964882023,6.45786244,3097.0,3096.2,0.95549621]
[1767964882331,3.22893122,3097.0,3096.2,0.95549621]
[1767964883312,3.22893122,3097.0,3096.0,6.45994616]
[1767964883313,3.2308784,3097.1,3096.4,0.95549621]
[1767964883632,6.4597568,3097.1,3096.4,0.95549621]
[1767964883807,0.64705726,3097.0,3096.4,0.95549621]
[1767964883998,3.22903548,3096.9,3096.4,0.95549621]
[1767964885949,3.22903548,3096.9,3096.4,0.88361378]
[1767964886130,12.64828603,3096.9,3096.2,0.254]